[Event "Early-Titled-Tuesday-Blitz-January-23-2024"]
[Site "Chess.com"]
[Date "2024.01.23"]
[Round "3"]
[White "GatoRojo150"]
[Black "Hovik_Hayrapetyan"]
[Result "0-1"]
[WhiteElo "2603"]
[BlackElo "2841"]
[TimeControl "180+1"]
[EndTime "8:27:05 PST"]
[Termination "Hovik_Hayrapetyan won by resignation"]

1. e4 {[%clk 0:03:00.9]} 1... c5 {[%clk 0:03:00]} 2. Nf3 {[%clk 0:03:01]} 2...
d6 {[%clk 0:03:00.6]} 3. Nc3 {[%clk 0:03:00.9]} 3... Nf6 {[%clk 0:03:00.5]} 4.
Bc4 {[%clk 0:03:00.9]} 4... a6 {[%clk 0:02:56.3]} 5. d4 {[%clk 0:03:00.8]} 5...
cxd4 {[%clk 0:02:55.7]} 6. Nxd4 {[%clk 0:03:01.7]} 6... e6 {[%clk 0:02:54.4]} 7.
Bb3 {[%clk 0:03:01.9]} 7... b5 {[%clk 0:02:53.7]} 8. Bg5 {[%clk 0:03:01.6]} 8...
Nbd7 {[%clk 0:02:43.1]} 9. O-O {[%clk 0:02:49.9]} 9... Nc5 {[%clk 0:02:38.9]}
10. Re1 {[%clk 0:02:48.4]} 10... Bb7 {[%clk 0:02:33.3]} 11. Bd5 {[%clk 0:02:46]}
11... Qc8 {[%clk 0:01:52.5]} 12. Qf3 {[%clk 0:02:18.9]} 12... Be7 {[%clk
0:01:29]} 13. Nf5 {[%clk 0:02:18.7]} 13... exf5 {[%clk 0:01:16.5]} 14. Bxf6
{[%clk 0:01:48.6]} 14... Bxf6 {[%clk 0:01:07.2]} 15. b4 {[%clk 0:01:13.5]} 15...
Bxd5 {[%clk 0:00:47.4]} 16. exf5+ {[%clk 0:01:02.1]} 16... Be6 {[%clk
0:00:24.1]} 17. bxc5 {[%clk 0:00:54.8]} 17... O-O {[%clk 0:00:24.2]} 18. fxe6
{[%clk 0:00:46.9]} 18... fxe6 {[%clk 0:00:25.1]} 19. Ne4 {[%clk 0:00:23.4]}
19... Bxa1 {[%clk 0:00:24.1]} 20. Qg4 {[%clk 0:00:19.5]} 20... Be5 {[%clk
0:00:21.2]} 21. g3 {[%clk 0:00:19]} 21... dxc5 {[%clk 0:00:18.8]} 22. Ng5 {[%clk
0:00:17.6]} 22... Bd4 {[%clk 0:00:19.1]} 23. Rxe6 {[%clk 0:00:17.1]} 23... Rxf2
{[%clk 0:00:17.5]} 24. Kh1 {[%clk 0:00:16.1]} 24... Qb7+ {[%clk 0:00:15.9]} 25.
Qe4 {[%clk 0:00:16.3]} 25... Qxe4+ {[%clk 0:00:15.3]} 26. Nxe4 {[%clk
0:00:17.2]} 26... Rxc2 {[%clk 0:00:15.3]} 0-1

[Event "Early-Titled-Tuesday-Blitz-January-23-2024"]
[Site "Chess.com"]
[Date "2024.01.23"]
[Round "3"]
[White "grzechu96"]
[Black "tusplingher"]
[Result "1-0"]
[WhiteElo "2706"]
[BlackElo "2501"]
[TimeControl "180+1"]
[EndTime "8:27:06 PST"]
[Termination "grzechu96 won on time"]

1. e4 {[%clk 0:02:55.5]} 1... c5 {[%clk 0:02:59.2]} 2. Nf3 {[%clk 0:02:55.2]}
2... d6 {[%clk 0:02:58.5]} 3. d4 {[%clk 0:02:53.9]} 3... Nf6 {[%clk 0:02:58.5]}
4. Nc3 {[%clk 0:02:53.6]} 4... cxd4 {[%clk 0:02:57.3]} 5. Nxd4 {[%clk
0:02:54.5]} 5... a6 {[%clk 0:02:57.8]} 6. Be2 {[%clk 0:02:48.3]} 6... g6 {[%clk
0:02:55.2]} 7. Be3 {[%clk 0:02:45.8]} 7... Bg7 {[%clk 0:02:55.3]} 8. Qd2 {[%clk
0:02:38.5]} 8... b5 {[%clk 0:02:39.1]} 9. Bf3 {[%clk 0:02:09]} 9... e5 {[%clk
0:02:08.8]} 10. Nb3 {[%clk 0:01:59.2]} 10... Bb7 {[%clk 0:01:34.9]} 11. O-O
{[%clk 0:01:20.8]} 11... O-O {[%clk 0:01:31.9]} 12. Rfd1 {[%clk 0:01:19.4]}
12... b4 {[%clk 0:01:27]} 13. Nd5 {[%clk 0:01:19.7]} 13... Bxd5 {[%clk
0:01:21.1]} 14. exd5 {[%clk 0:01:18]} 14... a5 {[%clk 0:01:14.2]} 15. a3 {[%clk
0:01:18]} 15... e4 {[%clk 0:00:43.5]} 16. Be2 {[%clk 0:01:15.4]} 16... Nfd7
{[%clk 0:00:42.4]} 17. axb4 {[%clk 0:01:09.5]} 17... Na6 {[%clk 0:00:30.8]} 18.
Nxa5 {[%clk 0:01:04.5]} 18... Ne5 {[%clk 0:00:15.2]} 19. c3 {[%clk 0:00:52]}
19... Nc7 {[%clk 0:00:12]} 20. Nc6 {[%clk 0:00:47.5]} 20... Nxc6 {[%clk
0:00:11.3]} 21. dxc6 {[%clk 0:00:48.4]} 21... Rxa1 {[%clk 0:00:10.9]} 22. Rxa1
{[%clk 0:00:48.2]} 22... d5 {[%clk 0:00:09]} 23. b5 {[%clk 0:00:47.4]} 23... Ne6
{[%clk 0:00:07.6]} 24. b6 {[%clk 0:00:40.9]} 24... Qc8 {[%clk 0:00:06.4]} 25. c7
{[%clk 0:00:38.4]} 25... Qb7 {[%clk 0:00:01.8]} 26. Ba6 {[%clk 0:00:35.4]} 26...
Qc6 {[%clk 0:00:01.2]} 27. c8=Q {[%clk 0:00:33.6]} 27... Rxc8 {[%clk 0:00:01.9]}
28. Bxc8 {[%clk 0:00:34.3]} 28... Qxc8 {[%clk 0:00:02.6]} 29. Qxd5 {[%clk
0:00:34]} 29... Bf8 {[%clk 0:00:01.6]} 30. b7 {[%clk 0:00:33.2]} 1-0

[Event "Early-Titled-Tuesday-Blitz-January-23-2024"]
[Site "Chess.com"]
[Date "2024.01.23"]
[Round "3"]
[White "medalja"]
[Black "olawsson"]
[Result "1-0"]
[WhiteElo "2403"]
[BlackElo "2145"]
[TimeControl "180+1"]
[EndTime "8:27:07 PST"]
[Termination "medalja won on time"]

1. c4 {[%clk 0:02:55.2]} 1... Nf6 {[%clk 0:02:53.6]} 2. Nc3 {[%clk 0:02:55]}
2... d5 {[%clk 0:02:53.7]} 3. cxd5 {[%clk 0:02:54.4]} 3... Nxd5 {[%clk
0:02:54.6]} 4. g3 {[%clk 0:02:53.7]} 4... g6 {[%clk 0:02:55]} 5. Bg2 {[%clk
0:02:53.2]} 5... Nxc3 {[%clk 0:02:53.7]} 6. bxc3 {[%clk 0:02:52.9]} 6... Bg7
{[%clk 0:02:53.8]} 7. Nf3 {[%clk 0:02:53.4]} 7... O-O {[%clk 0:02:53.6]} 8. O-O
{[%clk 0:02:53.5]} 8... Nd7 {[%clk 0:02:51.8]} 9. d4 {[%clk 0:02:53.5]} 9... c5
{[%clk 0:02:51.1]} 10. e4 {[%clk 0:02:50]} 10... b6 {[%clk 0:02:45.4]} 11. Re1
{[%clk 0:02:46.5]} 11... e5 {[%clk 0:02:31.6]} 12. d5 {[%clk 0:02:45.7]} 12...
Qc7 {[%clk 0:02:08.7]} 13. c4 {[%clk 0:02:35.2]} 13... Qd6 {[%clk 0:01:50.7]}
14. Bb2 {[%clk 0:02:31]} 14... Bh6 {[%clk 0:01:29.8]} 15. Qd3 {[%clk 0:02:16.1]}
15... Re8 {[%clk 0:01:14]} 16. Nh4 {[%clk 0:02:12.9]} 16... f6 {[%clk
0:00:54.8]} 17. Bc1 {[%clk 0:01:33.6]} 17... Bg7 {[%clk 0:00:37]} 18. Rb1 {[%clk
0:01:28.4]} 18... Nf8 {[%clk 0:00:21.6]} 19. f4 {[%clk 0:01:27.3]} 19... Bd7
{[%clk 0:00:20]} 20. f5 {[%clk 0:01:24.3]} 20... g5 {[%clk 0:00:14.8]} 21. Nf3
{[%clk 0:01:24.2]} 21... a6 {[%clk 0:00:11.4]} 22. h4 {[%clk 0:01:22.3]} 22...
h6 {[%clk 0:00:11.2]} 23. hxg5 {[%clk 0:01:21.4]} 23... hxg5 {[%clk 0:00:11.5]}
24. Kf2 {[%clk 0:01:21.9]} 24... b5 {[%clk 0:00:11]} 25. Rh1 {[%clk 0:01:18.1]}
25... bxc4 {[%clk 0:00:09.9]} 26. Qxc4 {[%clk 0:01:18.3]} 26... Bb5 {[%clk
0:00:09.9]} 27. Qc2 {[%clk 0:01:15.8]} 27... c4 {[%clk 0:00:10]} 28. Be3 {[%clk
0:01:14.4]} 28... Nd7 {[%clk 0:00:09.5]} 29. a4 {[%clk 0:01:13.3]} 29... Nc5
{[%clk 0:00:03.8]} 30. axb5 {[%clk 0:01:13.2]} 30... Nd3+ {[%clk 0:00:03.4]} 31.
Ke2 {[%clk 0:01:11.9]} 31... axb5 {[%clk 0:00:03]} 32. Rxb5 {[%clk 0:01:11.5]}
32... Reb8 {[%clk 0:00:02.4]} 33. Rhb1 {[%clk 0:01:07.5]} 33... Rxb5 {[%clk
0:00:02.2]} 34. Rxb5 {[%clk 0:01:08.4]} 34... g4 {[%clk 0:00:02.6]} 35. Nd2
{[%clk 0:01:05.5]} 35... Ra1 {[%clk 0:00:02]} 36. Nxc4 {[%clk 0:00:57.3]} 36...
Qa3 {[%clk 0:00:01.9]} 37. Nxa3 {[%clk 0:00:55.3]} 1-0

[Event "Early-Titled-Tuesday-Blitz-January-23-2024"]
[Site "Chess.com"]
[Date "2024.01.23"]
[Round "3"]
[White "mortngabriel"]
[Black "scarabee43"]
[Result "0-1"]
[WhiteElo "2515"]
[BlackElo "2810"]
[TimeControl "180+1"]
[EndTime "8:27:09 PST"]
[Termination "scarabee43 won on time"]

1. d4 {[%clk 0:03:00.9]} 1... Nf6 {[%clk 0:02:59.8]} 2. Nf3 {[%clk 0:03:00.3]}
2... d5 {[%clk 0:02:59.5]} 3. c4 {[%clk 0:03:00.1]} 3... c6 {[%clk 0:02:58.1]}
4. e3 {[%clk 0:02:59]} 4... Bf5 {[%clk 0:02:57.8]} 5. Nc3 {[%clk 0:02:55]} 5...
e6 {[%clk 0:02:56.3]} 6. Nh4 {[%clk 0:02:49]} 6... Bg6 {[%clk 0:02:56]} 7. Nxg6
{[%clk 0:02:48.5]} 7... hxg6 {[%clk 0:02:55.6]} 8. g3 {[%clk 0:02:37.9]} 8...
Nbd7 {[%clk 0:02:53.8]} 9. Bg2 {[%clk 0:02:38]} 9... dxc4 {[%clk 0:02:48.8]} 10.
Qe2 {[%clk 0:02:33.4]} 10... Nb6 {[%clk 0:02:48.4]} 11. O-O {[%clk 0:02:32.5]}
11... Be7 {[%clk 0:02:44.1]} 12. Rd1 {[%clk 0:02:32]} 12... O-O {[%clk
0:02:43.6]} 13. e4 {[%clk 0:02:32.3]} 13... Re8 {[%clk 0:02:36.9]} 14. Be3
{[%clk 0:02:18.9]} 14... Qd7 {[%clk 0:02:29]} 15. a4 {[%clk 0:02:15.5]} 15...
Rad8 {[%clk 0:02:22.7]} 16. a5 {[%clk 0:02:12.9]} 16... Nc8 {[%clk 0:02:23.3]}
17. Qxc4 {[%clk 0:02:12.6]} 17... Ng4 {[%clk 0:02:20.1]} 18. Bf4 {[%clk
0:01:48.6]} 18... g5 {[%clk 0:02:13.5]} 19. Bc1 {[%clk 0:01:48.1]} 19... Nd6
{[%clk 0:01:49.2]} 20. Qe2 {[%clk 0:01:43.7]} 20... f5 {[%clk 0:01:49.6]} 21. h3
{[%clk 0:01:37.2]} 21... Nh6 {[%clk 0:01:48.7]} 22. e5 {[%clk 0:01:30.4]} 22...
Ndf7 {[%clk 0:01:48.9]} 23. Qc4 {[%clk 0:01:09.7]} 23... a6 {[%clk 0:01:41.6]}
24. Be3 {[%clk 0:01:00.8]} 24... Bf8 {[%clk 0:01:38.1]} 25. Na4 {[%clk
0:00:56.9]} 25... f4 {[%clk 0:01:33.1]} 26. gxf4 {[%clk 0:00:53.9]} 26... gxf4
{[%clk 0:01:31.6]} 27. Bxf4 {[%clk 0:00:53.5]} 27... Nf5 {[%clk 0:01:32.3]} 28.
Be3 {[%clk 0:00:45.7]} 28... Qe7 {[%clk 0:01:15.2]} 29. Qe2 {[%clk 0:00:35.8]}
29... Qb4 {[%clk 0:01:07]} 30. Nc3 {[%clk 0:00:34.1]} 30... Nxd4 {[%clk
0:01:03.7]} 31. Bxd4 {[%clk 0:00:33]} 31... Rxd4 {[%clk 0:01:03.7]} 32. Rxd4
{[%clk 0:00:25.2]} 32... Qxd4 {[%clk 0:01:04.1]} 33. Rd1 {[%clk 0:00:25.5]}
33... Qxe5 {[%clk 0:01:04]} 34. Qxe5 {[%clk 0:00:23.6]} 34... Nxe5 {[%clk
0:01:04.5]} 35. Ne4 {[%clk 0:00:15.6]} 35... Nc4 {[%clk 0:01:00.8]} 36. Rd7
{[%clk 0:00:12.7]} 36... Nxa5 {[%clk 0:01:00.8]} 37. Ng5 {[%clk 0:00:08.2]}
37... Be7 {[%clk 0:00:53.8]} 38. Nxe6 {[%clk 0:00:04.6]} 38... Bf6 {[%clk
0:00:53.7]} 39. Nc7 {[%clk 0:00:04.6]} 39... Re1+ {[%clk 0:00:53.4]} 40. Kh2
{[%clk 0:00:04.7]} 40... Be5+ {[%clk 0:00:53.7]} 0-1

[Event "Early-Titled-Tuesday-Blitz-January-23-2024"]
[Site "Chess.com"]
[Date "2024.01.23"]
[Round "3"]
[White "ImportedItalianMaple"]
[Black "Andrej2004"]
[Result "0-1"]
[WhiteElo "2446"]
[BlackElo "2631"]
[TimeControl "180+1"]
[EndTime "8:27:11 PST"]
[Termination "Andrej2004 won on time"]

1. e4 {[%clk 0:03:00.9]} 1... b6 {[%clk 0:03:00.9]} 2. d4 {[%clk 0:02:56.5]}
2... Bb7 {[%clk 0:03:01.5]} 3. Bd3 {[%clk 0:02:56.8]} 3... g6 {[%clk 0:03:02.2]}
4. h4 {[%clk 0:02:51.5]} 4... h6 {[%clk 0:03:01.8]} 5. h5 {[%clk 0:02:48.9]}
5... g5 {[%clk 0:03:01.9]} 6. f4 {[%clk 0:02:48]} 6... gxf4 {[%clk 0:03:02.4]}
7. Bxf4 {[%clk 0:02:48.6]} 7... d6 {[%clk 0:03:02.5]} 8. Nf3 {[%clk 0:02:48.5]}
8... Nd7 {[%clk 0:03:02.5]} 9. c3 {[%clk 0:02:43.8]} 9... Bg7 {[%clk 0:03:02.7]}
10. Nbd2 {[%clk 0:02:43.6]} 10... e5 {[%clk 0:03:02.4]} 11. Be3 {[%clk
0:02:42.7]} 11... Ngf6 {[%clk 0:03:00]} 12. Qe2 {[%clk 0:02:40.4]} 12... exd4
{[%clk 0:02:59]} 13. cxd4 {[%clk 0:02:39.9]} 13... Qe7 {[%clk 0:02:59.2]} 14.
O-O-O {[%clk 0:02:33.6]} 14... Nxe4 {[%clk 0:02:49.9]} 15. Rhe1 {[%clk
0:02:15.9]} 15... O-O-O {[%clk 0:02:35.2]} 16. Bf4 {[%clk 0:01:58.9]} 16... f5
{[%clk 0:02:29.6]} 17. Nxe4 {[%clk 0:01:57.3]} 17... fxe4 {[%clk 0:02:29.8]} 18.
Bxe4 {[%clk 0:01:57.7]} 18... Qf7 {[%clk 0:02:24.3]} 19. Bxb7+ {[%clk
0:01:16.1]} 19... Kxb7 {[%clk 0:02:25.2]} 20. Qe4+ {[%clk 0:01:16.4]} 20... Kb8
{[%clk 0:01:55.4]} 21. Bg3 {[%clk 0:00:51.3]} 21... Qxa2 {[%clk 0:01:51.7]} 22.
Qc6 {[%clk 0:00:45.6]} 22... Bf6 {[%clk 0:01:24.1]} 23. Kc2 {[%clk 0:00:27.9]}
23... Nc5 {[%clk 0:00:53.7]} 24. dxc5 {[%clk 0:00:09.3]} 24... Qxb2+ {[%clk
0:00:53.6]} 25. Kd3 {[%clk 0:00:10]} 25... Qc3+ {[%clk 0:00:31.9]} 26. Ke2
{[%clk 0:00:10]} 26... Rhg8 {[%clk 0:00:31.6]} 27. Bh2 {[%clk 0:00:02.6]} 27...
Rxg2+ {[%clk 0:00:30.7]} 28. Kf1 {[%clk 0:00:03.4]} 28... Qc2 {[%clk 0:00:25.1]}
0-1

[Event "Early-Titled-Tuesday-Blitz-January-23-2024"]
[Site "Chess.com"]
[Date "2024.01.23"]
[Round "3"]
[White "Me_ch_an"]
[Black "luckyswitchback"]
[Result "0-1"]
[WhiteElo "2300"]
[BlackElo "2710"]
[TimeControl "180+1"]
[EndTime "8:27:16 PST"]
[Termination "luckyswitchback won by resignation"]

1. e4 {[%clk 0:02:57]} 1... c6 {[%clk 0:02:59.6]} 2. d4 {[%clk 0:02:56.7]} 2...
d5 {[%clk 0:03:00.2]} 3. Nd2 {[%clk 0:02:57.2]} 3... dxe4 {[%clk 0:03:00.3]} 4.
Nxe4 {[%clk 0:02:57.7]} 4... Nf6 {[%clk 0:03:01.2]} 5. Nxf6+ {[%clk 0:02:58]}
5... exf6 {[%clk 0:03:02.1]} 6. c3 {[%clk 0:02:58.1]} 6... Bd6 {[%clk
0:03:02.6]} 7. Bd3 {[%clk 0:02:58.5]} 7... O-O {[%clk 0:03:03.3]} 8. Qc2 {[%clk
0:02:58.1]} 8... Re8+ {[%clk 0:03:03.9]} 9. Ne2 {[%clk 0:02:58.5]} 9... h5
{[%clk 0:03:04.5]} 10. O-O {[%clk 0:02:55.3]} 10... h4 {[%clk 0:03:05]} 11. h3
{[%clk 0:02:48]} 11... Nd7 {[%clk 0:03:04.2]} 12. Bd2 {[%clk 0:02:45.6]} 12...
Nf8 {[%clk 0:03:02.9]} 13. Rae1 {[%clk 0:02:45.7]} 13... Bc7 {[%clk 0:03:02.2]}
14. c4 {[%clk 0:02:43.1]} 14... Ne6 {[%clk 0:02:59.9]} 15. Be3 {[%clk
0:02:39.8]} 15... g6 {[%clk 0:02:46.6]} 16. Bxg6 {[%clk 0:02:25.4]} 16... fxg6
{[%clk 0:02:47.5]} 17. Qxg6+ {[%clk 0:02:25.9]} 17... Ng7 {[%clk 0:02:45.6]} 18.
Bh6 {[%clk 0:02:25.4]} 18... Re7 {[%clk 0:02:41.5]} 19. Nc3 {[%clk 0:02:20]}
19... Bf5 {[%clk 0:02:21]} 20. Qxf6 {[%clk 0:02:19.4]} 20... Rf7 {[%clk
0:02:17.9]} 21. Qxd8+ {[%clk 0:02:12.4]} 21... Rxd8 {[%clk 0:02:18.8]} 22. d5
{[%clk 0:02:09.4]} 22... Bd3 {[%clk 0:02:17.9]} 23. Bg5 {[%clk 0:01:56.1]} 23...
Rb8 {[%clk 0:02:04.9]} 24. c5 {[%clk 0:01:28]} 24... Ba5 {[%clk 0:01:50.1]} 25.
d6 {[%clk 0:01:01.4]} 25... Bxf1 {[%clk 0:01:46.8]} 26. Kxf1 {[%clk 0:01:00.4]}
26... Bxc3 {[%clk 0:01:43.6]} 27. bxc3 {[%clk 0:01:00.5]} 27... b6 {[%clk
0:01:42.7]} 28. cxb6 {[%clk 0:00:49.7]} 28... axb6 {[%clk 0:01:43.6]} 29. Bxh4
{[%clk 0:00:46.3]} 29... Rd7 {[%clk 0:01:35.1]} 30. Be7 {[%clk 0:00:45.1]} 30...
Nf5 {[%clk 0:01:33]} 31. Re6 {[%clk 0:00:45]} 31... Re8 {[%clk 0:01:16.6]} 32.
g4 {[%clk 0:00:36.1]} 32... Nxe7 {[%clk 0:01:13.6]} 33. dxe7 {[%clk 0:00:37]}
33... Rc7 {[%clk 0:01:11.9]} 34. Kg2 {[%clk 0:00:25.7]} 34... Rexe7 {[%clk
0:01:11.5]} 35. Rd6 {[%clk 0:00:24.5]} 35... Re2 {[%clk 0:01:09.2]} 36. a4
{[%clk 0:00:24.3]} 36... Ra2 {[%clk 0:01:07.1]} 37. Kg3 {[%clk 0:00:19.5]} 37...
Rxa4 {[%clk 0:01:06.8]} 38. f4 {[%clk 0:00:18.6]} 38... Rc4 {[%clk 0:01:07]} 39.
Rd3 {[%clk 0:00:18.5]} 39... b5 {[%clk 0:01:03.5]} 40. g5 {[%clk 0:00:18]} 40...
c5 {[%clk 0:01:02.5]} 41. f5 {[%clk 0:00:16]} 41... b4 {[%clk 0:01:02.2]} 42. f6
{[%clk 0:00:09.4]} 42... Rxc3 {[%clk 0:01:01.9]} 43. Rxc3 {[%clk 0:00:07.3]}
43... bxc3 {[%clk 0:01:02.8]} 44. g6 {[%clk 0:00:07.6]} 44... c2 {[%clk
0:01:03]} 0-1

[Event "Early-Titled-Tuesday-Blitz-January-23-2024"]
[Site "Chess.com"]
[Date "2024.01.23"]
[Round "3"]
[White "Lady_Nika"]
[Black "Saraisitave"]
[Result "1-0"]
[WhiteElo "2567"]
[BlackElo "2359"]
[TimeControl "180+1"]
[EndTime "8:27:16 PST"]
[Termination "Lady_Nika won on time"]

1. d4 {[%clk 0:03:00.9]} 1... d5 {[%clk 0:02:59.4]} 2. e3 {[%clk 0:02:58.8]}
2... Nf6 {[%clk 0:02:58.5]} 3. f4 {[%clk 0:02:59]} 3... g6 {[%clk 0:02:57.1]} 4.
Nf3 {[%clk 0:02:59.9]} 4... Bg7 {[%clk 0:02:57.4]} 5. c3 {[%clk 0:03:00.8]} 5...
c5 {[%clk 0:02:56.7]} 6. Bd3 {[%clk 0:03:01.7]} 6... Nc6 {[%clk 0:02:57.1]} 7.
O-O {[%clk 0:03:02]} 7... Bf5 {[%clk 0:02:57.2]} 8. Ne5 {[%clk 0:02:59.5]} 8...
Bxd3 {[%clk 0:02:48.5]} 9. Qxd3 {[%clk 0:02:59.2]} 9... c4 {[%clk 0:02:49]} 10.
Qe2 {[%clk 0:02:58]} 10... Ne4 {[%clk 0:02:49]} 11. Nd2 {[%clk 0:02:58.1]} 11...
Nxd2 {[%clk 0:02:44.6]} 12. Bxd2 {[%clk 0:02:57.9]} 12... f6 {[%clk 0:02:45.1]}
13. Nxc6 {[%clk 0:02:57.6]} 13... bxc6 {[%clk 0:02:45.7]} 14. e4 {[%clk
0:02:58.3]} 14... O-O {[%clk 0:02:42.1]} 15. f5 {[%clk 0:02:58]} 15... Rb8
{[%clk 0:02:32.5]} 16. Bf4 {[%clk 0:02:55.3]} 16... Rb7 {[%clk 0:02:30.2]} 17.
Rf2 {[%clk 0:02:54]} 17... dxe4 {[%clk 0:02:27.6]} 18. Qxe4 {[%clk 0:02:54]}
18... Qd5 {[%clk 0:02:28.2]} 19. Qe6+ {[%clk 0:02:33.8]} 19... Kh8 {[%clk
0:02:20.4]} 20. Bg3 {[%clk 0:02:24.6]} 20... Bh6 {[%clk 0:02:13.4]} 21. Re1
{[%clk 0:02:23.3]} 21... gxf5 {[%clk 0:01:35.1]} 22. Rxf5 {[%clk 0:02:08.9]}
22... Qxe6 {[%clk 0:01:33.8]} 23. Rxe6 {[%clk 0:02:08.7]} 23... Rxb2 {[%clk
0:01:03.8]} 24. Rxc6 {[%clk 0:01:58.8]} 24... Rxa2 {[%clk 0:01:00.1]} 25. Rxc4
{[%clk 0:01:58.5]} 25... Be3+ {[%clk 0:00:58.7]} 26. Kf1 {[%clk 0:01:58.2]}
26... a5 {[%clk 0:00:50.2]} 27. Rb5 {[%clk 0:01:44.9]} 27... f5 {[%clk
0:00:39.1]} 28. Be5+ {[%clk 0:01:43.8]} 28... Kg8 {[%clk 0:00:38.9]} 29. Rb7
{[%clk 0:01:42.8]} 29... Kf7 {[%clk 0:00:16.9]} 30. Rcc7 {[%clk 0:01:41.8]}
30... Re8 {[%clk 0:00:17.1]} 31. Rb5 {[%clk 0:01:35]} 31... Rf2+ {[%clk
0:00:13.9]} 32. Ke1 {[%clk 0:01:34.8]} 32... a4 {[%clk 0:00:13.4]} 33. Ra7
{[%clk 0:01:32.4]} 33... Rxg2 {[%clk 0:00:13.1]} 34. Rxa4 {[%clk 0:01:30.4]}
34... Rc2 {[%clk 0:00:13.4]} 35. d5 {[%clk 0:01:27.8]} 35... Rg8 {[%clk
0:00:13.3]} 36. Bg3 {[%clk 0:01:14.3]} 36... f4 {[%clk 0:00:13.6]} 37. Re4
{[%clk 0:01:01.5]} 37... fxg3 {[%clk 0:00:10.5]} 38. Rxe3 {[%clk 0:01:01.5]}
38... gxh2 {[%clk 0:00:10.8]} 39. Rf3+ {[%clk 0:01:01.7]} 39... Kg7 {[%clk
0:00:03.8]} 40. Rh3 {[%clk 0:01:01.2]} 40... Kh8 {[%clk 0:00:01.5]} 41. Kd1
{[%clk 0:00:57.8]} 41... Rg1+ {[%clk 0:00:01.2]} 42. Kxc2 {[%clk 0:00:57.6]} 1-0

[Event "Early-Titled-Tuesday-Blitz-January-23-2024"]
[Site "Chess.com"]
[Date "2024.01.23"]
[Round "3"]
[White "RandomNoob04"]
[Black "Felix-Rose"]
[Result "1-0"]
[WhiteElo "2573"]
[BlackElo "2293"]
[TimeControl "180+1"]
[EndTime "8:27:16 PST"]
[Termination "RandomNoob04 won by checkmate"]

1. e4 {[%clk 0:03:00.9]} 1... e5 {[%clk 0:02:59.4]} 2. d4 {[%clk 0:03:00.9]}
2... exd4 {[%clk 0:02:59.5]} 3. Qxd4 {[%clk 0:03:01.8]} 3... Nc6 {[%clk
0:02:59.7]} 4. Qe3 {[%clk 0:03:02.4]} 4... Nf6 {[%clk 0:02:59.4]} 5. e5 {[%clk
0:03:02.8]} 5... Ng4 {[%clk 0:02:57.2]} 6. Qe4 {[%clk 0:03:02.9]} 6... h5 {[%clk
0:01:33.9]} 7. h3 {[%clk 0:02:58.7]} 7... Nh6 {[%clk 0:01:33.3]} 8. Nf3 {[%clk
0:02:57.6]} 8... Qe7 {[%clk 0:01:31.8]} 9. Nc3 {[%clk 0:02:54.4]} 9... f5 {[%clk
0:01:15.6]} 10. Qe3 {[%clk 0:02:33.9]} 10... Qe6 {[%clk 0:01:05.3]} 11. Nb5
{[%clk 0:02:26.4]} 11... Bb4+ {[%clk 0:00:53.9]} 12. Bd2 {[%clk 0:02:22.1]}
12... Bxd2+ {[%clk 0:00:38.4]} 13. Nxd2 {[%clk 0:02:21.9]} 13... Kd8 {[%clk
0:00:32.2]} 14. Nf3 {[%clk 0:02:09.1]} 14... Re8 {[%clk 0:00:27.9]} 15. O-O-O
{[%clk 0:01:22.9]} 15... Nxe5 {[%clk 0:00:18.8]} 16. Qc3 {[%clk 0:01:01.2]}
16... Nc6 {[%clk 0:00:15.5]} 17. Bc4 {[%clk 0:00:59.2]} 17... Qf6 {[%clk
0:00:15.6]} 18. Qd2 {[%clk 0:00:52.8]} 18... a6 {[%clk 0:00:15.6]} 19. Nbd4
{[%clk 0:00:49.7]} 19... Nxd4 {[%clk 0:00:15.5]} 20. Nxd4 {[%clk 0:00:50.6]}
20... b5 {[%clk 0:00:15.1]} 21. Bd5 {[%clk 0:00:46.8]} 21... Rb8 {[%clk
0:00:13.3]} 22. Nc6+ {[%clk 0:00:38.9]} 22... dxc6 {[%clk 0:00:06.9]} 23. Bxc6+
{[%clk 0:00:39.8]} 23... Ke7 {[%clk 0:00:06.2]} 24. Rhe1+ {[%clk 0:00:29.9]}
24... Be6 {[%clk 0:00:06.1]} 25. Bxe8 {[%clk 0:00:30.5]} 25... Rxe8 {[%clk
0:00:06]} 26. Rxe6+ {[%clk 0:00:24.9]} 26... Kxe6 {[%clk 0:00:06.5]} 27. Qd7+
{[%clk 0:00:24.7]} 27... Ke5 {[%clk 0:00:06.8]} 28. Qxe8+ {[%clk 0:00:25.4]}
28... Kf4 {[%clk 0:00:06.6]} 29. Qe3# {[%clk 0:00:23.5]} 1-0

[Event "Early-Titled-Tuesday-Blitz-January-23-2024"]
[Site "Chess.com"]
[Date "2024.01.23"]
[Round "3"]
[White "Licancabur"]
[Black "Iunusovnuriddin"]
[Result "1-0"]
[WhiteElo "2487"]
[BlackElo "2260"]
[TimeControl "180+1"]
[EndTime "8:27:16 PST"]
[Termination "Licancabur won by resignation"]

1. d4 {[%clk 0:03:00.9]} 1... Nf6 {[%clk 0:02:58.5]} 2. Bg5 {[%clk 0:02:58.7]}
2... Ne4 {[%clk 0:02:55.5]} 3. Bf4 {[%clk 0:02:58.1]} 3... d5 {[%clk 0:02:55.5]}
4. f3 {[%clk 0:02:57.5]} 4... Nf6 {[%clk 0:02:55.5]} 5. e4 {[%clk 0:02:57.6]}
5... dxe4 {[%clk 0:02:52]} 6. Nc3 {[%clk 0:02:56.8]} 6... e6 {[%clk 0:02:41.3]}
7. fxe4 {[%clk 0:02:54.7]} 7... Bb4 {[%clk 0:02:37.3]} 8. Bd3 {[%clk 0:02:47.9]}
8... c5 {[%clk 0:02:03.2]} 9. a3 {[%clk 0:02:30.2]} 9... Ba5 {[%clk 0:01:26.5]}
10. dxc5 {[%clk 0:02:25.3]} 10... Bxc3+ {[%clk 0:01:19.3]} 11. bxc3 {[%clk
0:02:24.6]} 11... Nbd7 {[%clk 0:01:13.7]} 12. Bd6 {[%clk 0:02:17.8]} 12... Qa5
{[%clk 0:01:11.5]} 13. Ne2 {[%clk 0:01:49.1]} 13... Nxc5 {[%clk 0:01:10.4]} 14.
O-O {[%clk 0:01:47.8]} 14... Ncxe4 {[%clk 0:00:59.3]} 15. Bxe4 {[%clk
0:01:11.3]} 15... Nxe4 {[%clk 0:01:00.2]} 16. Kh1 {[%clk 0:00:31.1]} 16... Qb6
{[%clk 0:00:53.7]} 17. Bf4 {[%clk 0:00:19.7]} 17... Nf2+ {[%clk 0:00:40.3]} 18.
Rxf2 {[%clk 0:00:19.3]} 18... Qxf2 {[%clk 0:00:41.2]} 19. Bd6 {[%clk 0:00:16.4]}
19... Bd7 {[%clk 0:00:39]} 20. Nd4 {[%clk 0:00:15.2]} 20... Rd8 {[%clk 0:00:37]}
21. Rb1 {[%clk 0:00:13.7]} 21... Bc6 {[%clk 0:00:30.4]} 22. Nxc6 {[%clk
0:00:12.4]} 22... bxc6 {[%clk 0:00:31.3]} 23. Rb7 {[%clk 0:00:11.9]} 23... Qc5
{[%clk 0:00:26.1]} 24. Re7+ {[%clk 0:00:08.9]} 24... Kf8 {[%clk 0:00:25.5]} 25.
Rd7+ {[%clk 0:00:08.8]} 25... Ke8 {[%clk 0:00:22.4]} 26. Rxd8+ {[%clk
0:00:08.6]} 26... Kxd8 {[%clk 0:00:22.8]} 27. Bxc5+ {[%clk 0:00:08.8]} 27... Kc8
{[%clk 0:00:23.7]} 28. Qd6 {[%clk 0:00:08.9]} 28... Kb7 {[%clk 0:00:23.7]} 29.
Qd7+ {[%clk 0:00:08.9]} 29... Kb8 {[%clk 0:00:24.2]} 30. Bd6+ {[%clk 0:00:08.4]}
1-0